2CCN - Level 2 Cost Centre Name,,9CCN - Level 9 Cost Centre Name,9CCC - Level 9 Cost Centre Code,9AN - Level 9 Account Name,9AC - Level 9 Account Code,Slt Description,Date Paid,Transaction Reference,Analysed Amount,2AC - Level 2 Account Codes,Supplier Name
Gloucester City Council,23UE,Inhouse Training,EH200,Vocational Training,2970,CHRIS 21 TRAINING - P JEFFERIES,04/01/2011,313020,921.6,Revenue,Frontier Software Plc
Gloucester City Council,23UE,Group Mgr Regen Strat & Del,GR101,Vocational Training,2970,COURSE 15/16/17 SEPT / GODFREY,04/01/2011,313489,2085,Revenue,Excitech Ltd
Gloucester City Council,23UE,Crematorium,HC200,Gas Supply,3100,GLOUCESTER CEMETRY - G TARLING,04/01/2011,313450,1439.59,Revenue,Corona Energy
Gloucester City Council,23UE,Crematorium,HC200,Gas Supply,3100,GLOUCESTER CEMETRY - G TARLING,04/01/2011,313454,5612.4,Revenue,Corona Energy
Gloucester City Council,23UE,Housing Works In Default,HD500,Clearance And Cleansing Fees,5384,SHEPHERD ROAD,04/01/2011,313428,4483.51,Revenue,Three Counties Drain Service
Gloucester City Council,23UE,Retail Market - Landlord,HM300,Trade Refuse Sacks,5040,SKIP HIRE NOV 10,04/01/2011,313426,752,Revenue,Barnwood Shopfitting Ltd
Gloucester City Council,23UE,Guildhall Events,LA200,Artists Fees,5355,Whole Lotta Led 23/12/10 - Ticket Sales,04/01/2011,313496,2103.13,Revenue,Good Times Promotions
Gloucester City Council,23UE,Aspire Admin Charges,LC105,Gas Supply,3100,GLOUCESTER LEISURE CENTRE - G TARLING,04/01/2011,313445,20921.03,Revenue,Corona Energy
Gloucester City Council,23UE,Aspire Admin Charges,LC105,Contracted Services,6970,MANAGEMENT FEE DEC 10,04/01/2011,313432,127047.83,Revenue,Aspire Sports & Cultural Trust
Gloucester City Council,23UE,Aspire Admin Charges,LC105,Gas Supply,3100,OXSTALLS TENNIS CENTRE - G TARLING,04/01/2011,313448,1141.27,Revenue,Corona Energy
Gloucester City Council,23UE,Cspan,LC146,Coaching Fees,5365,HIRE INDOOR TENNIS CENTRE,04/01/2011,312919,5068,Revenue,Aspire Sports & Cultural Trust
Gloucester City Council,23UE,City Museum And Art Gallery,LM200,Gas Supply,3100,CITY MUSEUM - G TARLING,04/01/2011,313449,1572.2,Revenue,Corona Energy
Gloucester City Council,23UE,Folk Museum,LM210,Operational Equipment <?5000,5012,STANDARD BASE,04/01/2011,312595,769.2,Revenue,Dell Computers Corporation Ltd
Gloucester City Council,23UE,Director Resources,MR102,Consultants Fees,5349,ADVISOR NOV/DEC 10,04/01/2011,313423,2100.8,Revenue,Resources Consultancy Limited
Gloucester City Council,23UE,Environmental Areas,PE100,Contracted Services,6970,PAVILION KING GEORGE V - D. CARTWRIGHT,04/01/2011,311503,7203.94,Revenue,Npower
Gloucester City Council,23UE,Environmental Areas,PE100,Contracted Services,6970,ALNEY ISLAND - KELVIN PAUL,04/01/2011,313022,4700,Revenue,Hardwick Steel Fabrications Ltd
Gloucester City Council,23UE,Off Street Car Parks,PP110,Rents,3200,RENT -EASTGATE SHOP CENTRE - H CLARKE,04/01/2011,312447,58750,Revenue,Workman Llp Rent Account
Gloucester City Council,23UE,Off Street Car Parks,PP110,Contracted Services,6970,PERMIT FEE/ HEATHER CLARKE,04/01/2011,313274,534.94,Revenue,Chipside Ltd
Gloucester City Council,23UE,Off Street Car Parks,PP110,Contracted Services,6970,TICKET SYSTEM / HEATHER CLARKE,04/01/2011,313271,730.66,Revenue,Chipside Ltd
Gloucester City Council,23UE,Off Street Car Parks,PP110,Water Supply,3400,BRITISH GAS / PARKING / HEATHER,04/01/2011,313483,2451.75,Revenue,British Gas
Gloucester City Council,23UE,Off Street Car Parks,PP110,Rents,3200,EASTGATE SHOP CENTRE - H CLARKE,04/01/2011,312449,1081,Revenue,Workman Llp Service Charge Account
Gloucester City Council,23UE,Planning Delivery Grant,PT340,Computer Hardware <?5000,5420,MAINT & SUPPORT 12/10-12/11,04/01/2011,312596,1360,Revenue,Rocc Computers Ltd
Gloucester City Council,23UE,Planning Delivery Grant,PT340,Fees For Services Received,5350,SURVEYS / MEYRICK TIM WATTON,04/01/2011,312645,4625,Revenue,Worcestershire Wildlife Consultancy
Gloucester City Council,23UE,Civil Parking Enforcement,PT741,Computer Hardware <?5000,5420,CHIPASSIST HARDWARE - H CLARKE,04/01/2011,313005,1810.94,Revenue,Chipside Ltd
Gloucester City Council,23UE,Civil Parking Enforcement,PT741,On Street Parking Charges,6550,COST OF PARKING INCOME/ HEATHER,04/01/2011,313471,52272.32,Revenue,Gloucestershire County Council
Gloucester City Council,23UE,Civil Parking Enforcement,PT741,Computer Hardware <?5000,5420,CHIPASSIST SOFTWARE - H CLARKE,04/01/2011,313006,3500,Revenue,Chipside Ltd
Gloucester City Council,23UE,Parking Cctv,PT745,Contracted Services,6970,NOTICE PROCESSING SERVICES / HEATHER,04/01/2011,313273,4138.2,Revenue,Chipside Ltd
Gloucester City Council,23UE,Parking Cctv,PT745,On Street Parking Charges,6550,BUS LANE ENFORCEMENT / HEATHER,04/01/2011,313472,43107.62,Revenue,Gloucestershire County Council
Gloucester City Council,23UE,Parking Cctv,PT745,Contracted Services,6970,NOTICE PROCESSING / H CLARKE,04/01/2011,313272,6892.16,Revenue,Chipside Ltd
Gloucester City Council,23UE,Docks Complex - Services,RB100,Gas Supply,3100,THE DOCKS - G TARLING,04/01/2011,313453,1571.4,Revenue,Corona Energy
Gloucester City Council,23UE,Contact Centre,RB300,Telephones And Fax,5410,RENTAL LICENCE / WENDY JONES,04/01/2011,313196,862.5,Revenue,Veritape Ltd
Gloucester City Council,23UE,Investment Property,RB500,Fire Risk Assessment,3019,NORTH WAREHOUSE,04/01/2011,313430,3415,Revenue,King Builders (Gloucester) Ltd
Gloucester City Council,23UE,Kings Quarter Redevelopment,RB600,Consultants Fees,5349,ADVISOR NOV/DEC 10,04/01/2011,313424,2099.05,Revenue,Resources Consultancy Limited
Gloucester City Council,23UE,Printing / Photocopying Servs,RS130,Paper And Printing Materials,5321,GUILDHALL BROCHURE - A CHALMERS,04/01/2011,313364,699,Revenue,In2print Ltd
Gloucester City Council,23UE,Financial Services,RT200,Publications,5060,LA ACCOUNTING 10/11,04/01/2011,313463,500,Revenue,Cipfa Business Limited
Gloucester City Council,23UE,Corporate Income,RT630,Security Services Fees,5351,#EMPTY,04/01/2011,313421,566.4,Revenue,G4s Cash Solutions (Uk) Ltd
Gloucester City Council,23UE,Council Tax Collection,RT680,Postages,5400,#EMPTY,04/01/2011,313437,658.73,Revenue,Royal Mail S.Wales & South West
Gloucester City Council,23UE,Council Tax Collection,RT680,Computer Software Maintenance,5427,#EMPTY,04/01/2011,313417,4500,Revenue,Civica Uk Ltd
Gloucester City Council,23UE,Nndr Collection,RT690,Computer Software Maintenance,5427,#EMPTY,04/01/2011,313417,1500,Revenue,Civica Uk Ltd
Gloucester City Council,23UE,Business Transformation & Tech,RT700,Basic Pay - Temporary Staff,2751,C WATKINS W/E 17/12/10,04/01/2011,313436,937.5,Revenue,Ffox Software Ltd
Gloucester City Council,23UE,Business Transformation & Tech,RT700,Computer Software <?5000,5425,GFI MAIL ARCHIVER,04/01/2011,312909,1411.2,Revenue,Pnltools Ltd
Gloucester City Council,23UE,Treasury Management,VR110,Consultants Fees,5349,FIXED INCOME TREASURY SERVICES,04/01/2011,313462,3000,Revenue,Sector Treasury Services Ltd
Gloucester City Council,23UE,Redacted,Redacted,Redacted,Redacted,Redacted,04/01/2011,313665,-275.36,Revenue,Redacted
Gloucester City Council,23UE,Cemeteries,HC300,Trade Refuse Tipping Fees,6297,TRADE WASTE 01/01/11-31/03/11,05/01/2011,313668,4831,Revenue,Enterprise (Aol) Ltd
Gloucester City Council,23UE,Hempsted Market/Car Boot,HM234,Trade Refuse Sacks,5040,TRADE WASTE 01/01/11-31/03/11,05/01/2011,313668,1040.52,Revenue,Enterprise (Aol) Ltd
Gloucester City Council,23UE,Retail Market - Landlord,HM300,Trade Refuse Collection,3630,TRADE WASTE 01/01/11-31/03/11,05/01/2011,313668,1013.84,Revenue,Enterprise (Aol) Ltd
Gloucester City Council,23UE,Guildhall Events,LA200,Fees For Services Received,5350,Technicians,05/01/2011,313498,550,Revenue,N I Worms - Music Production & Training
Gloucester City Council,23UE,Redacted,Redacted,Redacted,Redacted,Redacted,05/01/2011,313660,600,Redacted,Redacted
Gloucester City Council,23UE,Environmental Areas,PE100,Contracted Services,6970,TREE REMOVAL,05/01/2011,313667,4820.2,Revenue,Enterprise (Aol) Ltd
Gloucester City Council,23UE,Docks Complex - Services,RB100,Trade Refuse Sacks,5040,TRADE WASTE 01/01/11-31/03/11,05/01/2011,313668,2135.22,Revenue,Enterprise (Aol) Ltd
Gloucester City Council,23UE,Registration Of Electors,RS400,Fees For Services Received,5350,SUPERANNUATION FOR ELECTION PAYMENTS,05/01/2011,313670,1205.65,Revenue,Gloucestershire County Council
Gloucester City Council,23UE,Redacted,Redacted,Redacted,30,Redacted,05/01/2011,313655,602.77,Redacted,Redacted
Gloucester City Council,23UE,Dwelling Improvements,BY008,Contract Payments,20,#EMPTY,06/01/2011,313707,449809.51,Capital,Gloucester City Homes
Gloucester City Council,23UE,Gf Lifelinks,CH180,Fees For Services Received,5350,#EMPTY,06/01/2011,313709,5271,Revenue,Gloucester City Homes
Gloucester City Council,23UE,Redacted,Redacted,Redacted,Redacted,Redacted,06/01/2011,313711,500,Redacted,Redacted
Gloucester City Council,23UE,Redacted,Redacted,Redacted,Redacted,Redacted,06/01/2011,313710,500,Redacted,Redacted
Gloucester City Council,23UE,Sscf - Asbru Office Costs,FP843,Other Minor Supplies Services,5590,Young People's ASB workshops,06/01/2011,313680,730,Revenue,Gloucester City Homes
Gloucester City Council,23UE,Crematorium,HC200,Fees For Services Received,5350,#EMPTY,06/01/2011,11325,752.64,Revenue,Dr D Martin
Gloucester City Council,23UE,Crematorium,HC200,Fees For Services Received,5350,CREM FEES JAN 2011,06/01/2011,313723,811.04,Revenue,Dr D J Conaty & Partners
Gloucester City Council,23UE,Crematorium,HC200,Fees For Services Received,5350,#EMPTY,06/01/2011,11326,900.4,Revenue,Dr C M Stretton
Gloucester City Council,23UE,Cemeteries,HC300,Routine R And M - Vehicles,4011,#EMPTY,06/01/2011,313728,515,Revenue,Vac Doctors
Gloucester City Council,23UE,Cemeteries,HC300,Water Supply,3400,ACCT 3850368733,06/01/2011,313719,673.03,Revenue,Severn Trent Water Ltd
Gloucester City Council,23UE,Retail Market - Landlord,HM300,General Repair/Maint Buildings,3000,#EMPTY,06/01/2011,313717,549.07,Revenue,King Builders (Gloucester) Ltd
Gloucester City Council,23UE,Guildhall Arts Centre,LA100,Gas Supply,3100,ENERGY BILL / GUILDHALL,06/01/2011,313464,1033.94,Revenue,Corona Energy
Gloucester City Council,23UE,Guildhall Bar And Caf?,LA210,Catering Provisions -Liquor,5111,Bar Supplies,06/01/2011,313690,1079.1,Revenue,Cellar Supplies Cheltenham Ltd
Gloucester City Council,23UE,Guildhall Bar And Caf?,LA210,Catering Provisions -Food,5110,Cafe Supplies,06/01/2011,313693,658.14,Revenue,Woodward Foodservice
Gloucester City Council,23UE,City Museum And Art Gallery,LM200,Maint Agreements - Fixed Plant,3011,2011 CCTV MAINTENANCE,06/01/2011,313722,1303.19,Revenue,Secom Plc
Gloucester City Council,23UE,Folk Museum,LM210,Gas Supply,3100,ENERGY BILL FOLK MUSEUM,06/01/2011,313465,624.67,Revenue,Corona Energy
Gloucester City Council,23UE,Parks Contract Management,LP100,Additional Non-Tender Items,6973,#EMPTY,06/01/2011,313717,535.77,Revenue,King Builders (Gloucester) Ltd
Gloucester City Council,23UE,Tourism Marketing,LT100,General Repair/Maint Buildings,3000,#EMPTY,06/01/2011,313717,724.91,Revenue,King Builders (Gloucester) Ltd
Gloucester City Council,23UE,Tic Coach Tickets,LT105,Materials For Sale,5080,Commission - Ticket sales,06/01/2011,313689,2870.36,Revenue,Marchants Coaches Ltd
Gloucester City Council,23UE,Tic Theatre Ticket Sales,LT107,Materials For Sale,5080,Commission - Ticket sales,06/01/2011,313700,1334.75,Revenue,Wetm Ltd
Gloucester City Council,23UE,Coneyhill Hospital S 106 Works,LY072,Contract Payments,20,#EMPTY,06/01/2011,313726,2446,Capital,Abbey Surfacing
Gloucester City Council,23UE,S.106 Coney Hill School Dev,LY098,Contract Payments,20,REF INV 24692,06/01/2011,313705,-9750,Capital,Greenfields Garden Services Ltd
Gloucester City Council,23UE,S.106 Coney Hill School Dev,LY098,Contract Payments,20,MAY TREE SQUARE,06/01/2011,313706,9750,Capital,Greenfields Garden Services Ltd
Gloucester City Council,23UE,Environmental Areas,PE100,Contracted Services,6970,TEMP STAFF ROB WITTINGTON / SINEAD,06/01/2011,313475,900.9,Revenue,One To One Recruitment
Gloucester City Council,23UE,Cattle Market Park And Ride,PJ140,Fees For Services Received,5350,NOV / VARIABLE SERVICES / H CLARKE,06/01/2011,312815,4349.62,Revenue,Apcoa Parking (Uk) Ltd
Gloucester City Council,23UE,Off Street Car Parks,PP110,Water Supply,3400,KINGS SQUARE MULTISTORY / HEATHER,06/01/2011,313522,683.7,Revenue,Severn Trent Water
Gloucester City Council,23UE,Off Street Car Parks,PP110,General Repair/Maint Buildings,3000,#EMPTY,06/01/2011,313724,4990,Revenue,Pure Asphalt Co Ltd
Gloucester City Council,23UE,Off Street Car Parks,PP110,Fees For Services Received,5350,NOV / VARIABLE SERVICES / H CLARKE,06/01/2011,312815,54795.72,Revenue,Apcoa Parking (Uk) Ltd
Gloucester City Council,23UE,Off Street Car Parks,PP110,General Repair/Maint Buildings,3000,#EMPTY,06/01/2011,313716,1441.1,Revenue,King Builders (Gloucester) Ltd
Gloucester City Council,23UE,Blackfriars Carpark,PP120,General Repair/Maint Buildings,3000,#EMPTY,06/01/2011,313717,614.57,Revenue,King Builders (Gloucester) Ltd
Gloucester City Council,23UE,Projects & Maintenance,PT500,Professional Fees,2980,#EMPTY,06/01/2011,19548,554,Revenue,Godfrey Tarling
Gloucester City Council,23UE,Civil Parking Enforcement,PT741,Contracted Services,6970,NOV / VARIABLE SERVICES / H CLARKE,06/01/2011,312815,31041.27,Revenue,Apcoa Parking (Uk) Ltd
Gloucester City Council,23UE,Forest Of Dean Cpe,PT744,Contracted Services,6970,NOV / VARIABLE SERVICES / H CLARKE,06/01/2011,312815,1987.47,Revenue,Apcoa Parking (Uk) Ltd
Gloucester City Council,23UE,Docks Complex - Services,RB100,General Repair/Maint Buildings,3000,#EMPTY,06/01/2011,313717,1014.51,Revenue,King Builders (Gloucester) Ltd
Gloucester City Council,23UE,Docks Complex - Services,RB100,Gas Supply,3100,ENERGY BILL / NORTH WAREHOUSE,06/01/2011,313468,932.13,Revenue,Corona Energy
Gloucester City Council,23UE,Docks Complex - Services,RB100,General Repair/Maint Buildings,3000,#EMPTY,06/01/2011,313716,777.93,Revenue,King Builders (Gloucester) Ltd
Gloucester City Council,23UE,Docks Complex - Castlemeads Cp,RB210,Fees For Services Received,5350,NOV / VARIABLE SERVICES / H CLARKE,06/01/2011,312815,3849.53,Revenue,Apcoa Parking (Uk) Ltd
Gloucester City Council,23UE,Investment Property,RB500,General Repair/Maint Buildings,3000,#EMPTY,06/01/2011,313717,2125.02,Revenue,King Builders (Gloucester) Ltd
Gloucester City Council,23UE,75/81 Eastgate Street,RB501,Gas Supply,3100,ENERGY BILL / 75/81 EASTGATE STREET,06/01/2011,313467,800.76,Revenue,Corona Energy
Gloucester City Council,23UE,Corporate Expenses,RC110,Public Transportation,4061,RAIL TRAVEL / JOANNE SCRIVENSl,06/01/2011,312628,750,Revenue,Rsp Ltd
Gloucester City Council,23UE,Guildhall Works,RY155,Contract Payments,20,#EMPTY,06/01/2011,313716,4957.34,Capital,King Builders (Gloucester) Ltd
Gloucester City Council,23UE,Folk Museum Works,RY164,Contract Payments,20,ESCapitalE SIGNAGE /  GODFREY TARLING,06/01/2011,312677,555.12,Capital,Hanman Split Ltd
Gloucester City Council,23UE,Depot Admin Holding A/C,SD100,Electricity Supply,3110,ELEC NOVEMBER 2010 - G. TARLING,06/01/2011,313654,34905.72,Revenue,Southern Electric
Gloucester City Council,23UE,Housing Strategy & Enabling,CH110,Survey Fees,5381,TENDER ADVERT - JULIE WIGHT,07/01/2011,313873,1548,Revenue,Chartered Institute Of Environmental Health
Gloucester City Council,23UE,Redacted,Redacted,Redacted,Redacted,Redacted,07/01/2011,313857,700,Revenue,Redacted
Gloucester City Council,23UE,Redacted,Redacted,Redacted,Redacted,Redacted,07/01/2011,313864,500,Redacted,Redacted
Gloucester City Council,23UE,Childrens Play-Play Ranger Sch,FP140,Fees For Services Received,5350,Play Rangers delivery Oct-Dec 2010,07/01/2011,313741,26095,Revenue,Play Gloucestershire
Gloucester City Council,23UE,Playbuilder,FP142,Non Government Grants,9160,#EMPTY,07/01/2011,313828,800,Revenue,Greenfields Garden Services Ltd
Gloucester City Council,23UE,Cems/Crems Admin,HC100,Maintenance Of Equipment,5030,MEMBERSHIP 2011,07/01/2011,313822,699,Revenue,Federation Of Burial And Crem Authorities
Gloucester City Council,23UE,Crematorium Abatement,HY038,Contract Payments,20,#EMPTY,07/01/2011,313834,880,Capital,Lansford Access Ltd
Gloucester City Council,23UE,Tourism Marketing,LT100,Contract Cleaning,3620,Cleaning and Maintenance,07/01/2011,313856,629.67,Revenue,Rentokil Initial
Gloucester City Council,23UE,Tourism Marketing,LT100,Trade Refuse Sacks,5040,TRADE SACKS,07/01/2011,313827,1637.45,Revenue,Enterprise (Aol) Ltd
Gloucester City Council,23UE,Tourism Marketing,LT100,Sale Of Goods And Services,9230,SALE OF GOODS IN TIC WINDOW,07/01/2011,313859,-14.6,Revenue,William Robson
Gloucester City Council,23UE,S.106 Coney Hill School Dev,LY098,Contract Payments,20,#EMPTY,07/01/2011,313829,10717.5,Capital,Greenfields Garden Services Ltd
Gloucester City Council,23UE,Environmental Areas,PE100,Contracted Services,6970,SUNDAY RECYCLING NOV 10,07/01/2011,313823,1000,Revenue,Enterprise (Aol) Ltd
Gloucester City Council,23UE,Investment Property,RB500,Pat,3012,APPLIANCE TESTING / GODFREY TARKING,07/01/2011,312805,5532.65,Revenue,Tm Facilities Services Ltd
Gloucester City Council,23UE,Treasury Management,VR110,Consultants Fees,5349,TREASURY SERVICES,07/01/2011,313861,3000,Revenue,Sector Treasury Services Ltd
Gloucester City Council,23UE,Treasury Management,VR110,Brokerage Fees,5951,BROKERS FEES,07/01/2011,313858,2175.34,Revenue,Martin Brokers (Uk) Plc
Gloucester City Council,23UE,Inhouse Training,EH200,Management Training,2977,CONSULTANCY SERVICES / P JEFFREY,10/01/2011,313659,4944,Revenue,Thirsty Horses Limited
Gloucester City Council,23UE,Training Schemes,ET100,Vocational Training,2970,TRAINING VARIOUS - ADAM CHALMERS,10/01/2011,313213,1720,Revenue,The Gold Standard
Gloucester City Council,23UE,Partnerships Trainees,ET101,Vocational Training,2970,TRAINING VARIOUS - ADAM CHALMERS,10/01/2011,313212,1830,Revenue,The Gold Standard
Gloucester City Council,23UE,Grants To Voluntary Sector,FG100,Funding Vol&Com Grps-Sust,7100F,"Gay&PlayGlos, Gymnation work",10/01/2011,313850,1230.8,Revenue,Lateral Solutions
Gloucester City Council,23UE,Pollution Control,HE300,Fees For Services Received,5350,ANALYTICAL FEE / JULIE WIGHT,10/01/2011,313702,868,Revenue,Bristol City Council
Gloucester City Council,23UE,Guildhall Events,Redacted,Redacted,Redacted,Redacted,10/01/2011,313951,750,Redacted,Redacted
Gloucester City Council,23UE,Play Area Refurbishment,LY071,Contract Payments,20,PLAY EQUIPMENT / KAY LILLINGTON,10/01/2011,313704,30886,Capital,Proludic Ltd
Gloucester City Council,23UE,Hillfield Gardens S106,LY112,Contract Payments,20,GLAZING REPAIRS / CAROLINE,10/01/2011,313276,2680,Capital,Jim Budd Stained Glass
Gloucester City Council,23UE,Public Transportation,PJ110,Travel Ticket Sales,9238,TICKET SALES / NICOLA,10/01/2011,313528,1488.6,Revenue,Stagecoach Services Ltd*
Gloucester City Council,23UE,Off Street Car Parks,PP110,Electricity Supply,3110,BRITISH GAS BILL,10/01/2011,313470,1336.3,Revenue,British Gas
Gloucester City Council,23UE,Off Street Car Parks,PP110,Rents,3200,KINGS WALK CAR PARK / HEATHER,10/01/2011,313500,28125,Revenue,Dtz
Gloucester City Council,23UE,Sandhurst Lane Flood Works,PY272,Contract Payments,20,HERBERT WAREHOUSE / GODFREY,10/01/2011,313526,1291.88,Capital,Hays Construction & Property
Gloucester City Council,23UE,Docks Complex - Services,RB100,Telephones And Fax,5410,PROPERTY/ MARKETS / R BYWATER,10/01/2011,313505,712.5,Revenue,Virgin Media Payments Ltd
Gloucester City Council,23UE,Investment Property,RB500,Electricity Supply,3110,RevenueHERIDGE FARM - G TARLING,10/01/2011,313549,1006.12,Revenue,Npower
Gloucester City Council,23UE,Legal Services,RS200,Publications,5060,publications,10/01/2011,309506,5028,Revenue,Thomson Legal & Regulatory Ltd
Gloucester City Council,23UE,Corporate Property Services,RS300,Basic Pay -Admin /Prof Staff,2601,CONSULTANT - P ARDLEY,10/01/2011,313814,1050,Revenue,Ardley Associates
Gloucester City Council,23UE,Cemeteries,HC300,Routine R And M - Vehicles,4011,#EMPTY,11/01/2011,314009,854,Revenue,Border Replacement Tanks
Gloucester City Council,23UE,Tea & Wake Room Cem&Crem,HY043,Contract Payments,20,SURVEY OF CONEY HILL PARK POND,11/01/2011,313317,925,Capital,Vitruvius  Management Services Ltd
Gloucester City Council,23UE,Guildhall Events,Redacted,Redacted,Redacted,Redacted,11/01/2011,11354,500,Redacted,Redacted
Gloucester City Council,23UE,Play Area Refurbishment,LY071,Contract Payments,20,#EMPTY,11/01/2011,314011,24328.2,Capital,Greenfields Garden Services Ltd
Gloucester City Council,23UE,Director Strategy & Devel,MR103,Fees For Services Received,5350,STANDARD BASE,11/01/2011,313309,639.07,Revenue,Dell Computers Corporation Ltd
Gloucester City Council,23UE,Corporate Reporting /Financing,RC504,Audit Fees,5383,10/11 AUDIT FEE 3RD INSTALMENT,11/01/2011,314004,37862.5,Revenue,Kpmg
Gloucester City Council,23UE,Business Transformation & Tech,RT700,Basic Pay - Temporary Staff,2751,C WATKINS W/E 31/12/10,11/01/2011,313878,937.5,Revenue,Ffox Software Ltd
Gloucester City Council,23UE,Business Transformation & Tech,RT700,Computer Software Maintenance,5427,#EMPTY,11/01/2011,313998,4138.89,Revenue,Cristie Data Product
Gloucester City Council,23UE,Business Transformation & Tech,RT700,Basic Pay - Temporary Staff,2751,P HOOLE W/E 05/12/10,11/01/2011,313882,962,Revenue,G2 Recruitment Solutions Ltd
Gloucester City Council,23UE,Business Transformation & Tech,RT700,Computer Software Maintenance,5427,MAILDEFENSE SUITE RENEWAL,11/01/2011,313116,2548,Revenue,Pnltools Ltd
Gloucester City Council,23UE,Business Transformation & Tech,RT700,Basic Pay - Temporary Staff,2751,J COOPER W/E 28/11/10,11/01/2011,313881,1000,Revenue,G2 Recruitment Solutions Ltd
Gloucester City Council,23UE,Business Transformation & Tech,RT700,Basic Pay - Operational Staff,1001,J FRANKLIN W/E 19/12/10,11/01/2011,313885,1795.5,Revenue,Sanderson Recruitment Plc
Gloucester City Council,23UE,Business Transformation & Tech,RT700,Basic Pay - Temporary Staff,2751,C WATKINS W/E 24/12/10,11/01/2011,313886,937.5,Revenue,Ffox Software Ltd
Gloucester City Council,23UE,Business Transformation & Tech,RT700,Basic Pay - Operational Staff,1001,J FRANKLIN W/E 02/01/11,11/01/2011,313930,1197,Revenue,Sanderson Recruitment Plc
Gloucester City Council,23UE,Business Transformation & Tech,RT700,Basic Pay - Temporary Staff,2751,P HOOLE W/E 12/12/10,11/01/2011,313883,955.5,Revenue,G2 Recruitment Solutions Ltd
Gloucester City Council,23UE,Redacted,Redacted,Redacted,Redacted,Redacted,11/01/2011,314005,605.34,Redacted,Redacted
Gloucester City Council,23UE,Redacted,Redacted,Redacted,Redacted,Redacted,12/01/2011,313543,957,Redacted,Redacted
Gloucester City Council,23UE,Redacted,Redacted,Redacted,Redacted,Redacted,12/01/2011,314076,1258.19,Redacted,Redacted
Gloucester City Council,23UE,Improvement Grants,CY013,Disabled Facility Grants,74,GRANT REF MDF4703,12/01/2011,314074,1189,Capital,Stroud Stairlifts
Gloucester City Council,23UE,Guildhall Events,LA200,Artists Fees,5355,Security Charges - December 2010,12/01/2011,314042,1609.39,Revenue,Ads Security
Gloucester City Council,23UE,Guildhall Events,LA200,Artists Fees,5355,Security Services - November 2010,12/01/2011,314041,1412.51,Revenue,Ads Security
Gloucester City Council,23UE,Redacted,Redacted,Redacted,Redacted,Redacted,12/01/2011,314067,2650,Redacted,Redacted
Gloucester City Council,23UE,Tourism Marketing,LT100,Contract Cleaning,3620,Cleaning and Maintenance - November 2010,12/01/2011,314048,629.67,Revenue,Rentokil Initial
Gloucester City Council,23UE,Tic Theatre Ticket Sales,LT107,Sale Of Goods And Services,9230,Commission - Christmas Concert,12/01/2011,314063,-15.6,Revenue,Saint Cecilia Singers
Gloucester City Council,23UE,Depot,PY109,Contract Payments,20,EASTERN AVE DEPOT - J LUCKETT,12/01/2011,313853,831,Capital,Julian Stokes Management Ltd
Gloucester City Council,23UE,Postal Services,RS120,Postages,5400,MAIL COLLECTIONS - ADAM CHALMERS,12/01/2011,313360,500,Revenue,Royal Mail S.Wales & South West
Gloucester City Council,23UE,Legal Services,RS200,Publications,5060,ENCYCLOPEDIA HIGHWAY LAW -I MOSELEY,12/01/2011,313860,1055,Revenue,Sweet & Maxwell Ltd
Gloucester City Council,23UE,Financial Services,RT200,Stationery,5302,REF INV 948095072,12/01/2011,3075,-5.8,Revenue,Office Depot Uk Ltd
Gloucester City Council,23UE,Housing Benefits Admin,RT620,Computer Software Maintenance,5427,#EMPTY,12/01/2011,312770,1809.21,Revenue,Civica Uk Ltd
Gloucester City Council,23UE,Corporate Income,RT630,Security Services Fees,5351,#EMPTY,12/01/2011,314057,749,Revenue,The Safe Shop Ltd
Gloucester City Council,23UE,Debtors,RT640,Computer Software Maintenance,5427,#EMPTY,12/01/2011,314059,1540,Revenue,Ash Information Systems Ltd
Gloucester City Council,23UE,Council Tax Collection,RT680,Postages,5400,#EMPTY,12/01/2011,314082,642.85,Revenue,Royal Mail S.Wales & South West
Gloucester City Council,23UE,Council Tax Collection,RT680,Fees For Services Received,5350,#EMPTY,12/01/2011,314050,1365,Revenue,Strata Marketing
Gloucester City Council,23UE,Council Tax Collection,RT680,Printing,5300,#EMPTY,12/01/2011,314078,556.4,Revenue,Ricoh Uk Ltd
Gloucester City Council,23UE,Council Tax Collection,RT680,Computer Software Maintenance,5427,#EMPTY,12/01/2011,312770,1809.22,Revenue,Civica Uk Ltd
Gloucester City Council,23UE,Area Based Grant,ZR423,Redacted,Redacted,Redacted,12/01/2011,314069,2494.76,Redacted,Redacted
Gloucester City Council,23UE,Redacted,Redacted,Redacted,Redacted,Redacted,13/01/2011,314169,600,Redacted,Redacted
Gloucester City Council,23UE,Redacted,Redacted,Redacted,Redacted,Redacted,13/01/2011,314169,500,Revenue,Redacted
Gloucester City Council,23UE,Redacted,Redacted,Redacted,Redacted,Redacted,13/01/2011,314167,500,Revenue,Redacted
Gloucester City Council,23UE,Redacted,Redacted,Redacted,Redacted,Redacted,13/01/2011,314171,500,Redacted,Redacted
Gloucester City Council,23UE,Redacted,Redacted,Redacted,Redacted,Redacted,13/01/2011,314168,4760,Redacted,Redacted
Gloucester City Council,23UE,Cemeteries,HC300,Trade Refuse Tipping Fees,6297,#EMPTY,13/01/2011,314183,570,Revenue,Allstone Sand & Gravel Aggregates Ltd
Gloucester City Council,23UE,Guildhall Arts Centre,LA100,Telephones And Fax,5410,MAILING BROCHURE,13/01/2011,314144,737.68,Revenue,Quorum Print Services Ltd
Gloucester City Council,23UE,Redacted,Redacted,Redacted,Redacted,Redacted,13/01/2011,314094,867.41,Redacted,Redacted
Gloucester City Council,23UE,Redacted,Redacted,Redacted,Redacted,Redacted,13/01/2011,11358,1650,Redacted,Redacted
Gloucester City Council,23UE,Redacted,Redacted,Redacted,Redacted,Redacted,13/01/2011,314093,950,Revenue,Redacted
Gloucester City Council,23UE,Seedcorn Funding,LC139,Coaching Fees,5365,ANDY SANDERS- SPORT IN THE COMMUNITY,13/01/2011,314149,1458.66,Revenue,Tewkesbury Borough Council
Gloucester City Council,23UE,Seedcorn Funding,LC139,Coaching Fees,5365,TO CHARGE FOR-SEEDCORN FUNDING,13/01/2011,314150,1458.66,Revenue,Cotswold District Council
Gloucester City Council,23UE,Play Area Refurbishment,LY071,Contract Payments,20,#EMPTY,13/01/2011,314172,765.25,Capital,Greenfields Garden Services Ltd
Gloucester City Council,23UE,Coneyhill Hospital S 106 Works,LY072,Contract Payments,20,#EMPTY,13/01/2011,314174,2791,Capital,Greenfields Garden Services Ltd
Gloucester City Council,23UE,S.106 Coney Hill School Dev,LY098,Contract Payments,20,#EMPTY,13/01/2011,314175,650,Capital,Greenfields Garden Services Ltd
Gloucester City Council,23UE,Environmental Areas,PE100,Contracted Services,6970,#EMPTY,13/01/2011,314184,1800,Revenue,Jonathan Hodges
Gloucester City Council,23UE,Off Street Car Parks,PP110,General Repair/Maint Buildings,3000,#EMPTY,13/01/2011,314181,1025,Revenue,Abbey Surfacing
Gloucester City Council,23UE,Off Street Car Parks,PP110,Advertising And Publicity,5702,AD SPACE 22/11/10-05/12/10,13/01/2011,314163,3900,Revenue,Clear Channel Uk Ltd*
Gloucester City Council,23UE,Housing Benefits Admin,RT620,Fees For Services Received,5350,#EMPTY,13/01/2011,312772,840,Revenue,Cotswold District Council
Gloucester City Council,23UE,Housing Benefits Admin,RT620,Computer Software Maintenance,5427,#EMPTY,13/01/2011,314157,2318.73,Revenue,Ibs Opensystems (Uk) Ltd
Gloucester City Council,23UE,Housing Benefits Admin,RT620,Subscriptions,5600,#EMPTY,13/01/2011,314155,995,Revenue,I R R V Services Ltd
Gloucester City Council,23UE,Redacted,Redacted,Redacted,Redacted,Redacted,14/01/2011,314292,803.2,Redacted,Redacted
Gloucester City Council,23UE,Redacted,Redacted,Redacted,Redacted,Redacted,14/01/2011,314296,1046,Redacted,Redacted
Gloucester City Council,23UE,Redacted,Redacted,Redacted,Redacted,Redacted,14/01/2011,314294,1194.99,Redacted,Redacted
Gloucester City Council,23UE,Redacted,Redacted,Redacted,Redacted,Redacted,14/01/2011,314298,2825.55,Redacted,Redacted
Gloucester City Council,23UE,Human Resources,EH100,Fees For Services Received,5350,THREE MONTHS ADVERT - G BOURTON,14/01/2011,313940,1137,Revenue,Jobs Go Public
Gloucester City Council,23UE,Basic Command Unit,FP842,Other Minor Supplies Services,5590,Annual website hosting from IconRevenue,14/01/2011,314152,995,Revenue,Icon.Revenue
Gloucester City Council,23UE,Sscf - Asbru Office Costs,FP843,Other Minor Supplies Services,5590,Making Greyfriar's bowling green safer,14/01/2011,313992,4200,Revenue,City Centre Community Partnership
Gloucester City Council,23UE,Cemeteries,HC300,Routine R And M - Vehicles,4011,#EMPTY,14/01/2011,314308,591.52,Revenue,T H White Ltd
Gloucester City Council,23UE,Cemeteries,HC300,Major R And M - Vehicles,4010,WINTER SERVICE,14/01/2011,314261,1338.34,Revenue,T H White Ltd
Gloucester City Council,23UE,Eastgate Viewing Chamber,LY100,Contract Payments,20,CREDIT CONSULT FEES / MICK THORPE,14/01/2011,312630,-507.93,Capital,Bere Architects
Gloucester City Council,23UE,Eastgate Viewing Chamber,LY100,Contract Payments,20,CONSULTANCY FEES / MICK THORPE,14/01/2011,312629,1100,Capital,Bere Architects
Gloucester City Council,23UE,Docks Complex - Services,RB100,Water Supply,3400,KIMB/HERB/PHILPOTTS WHSE R BYWATER,14/01/2011,313816,888.03,Revenue,Severn Trent Water
Gloucester City Council,23UE,Blackfriars Development,RB511,General Repair/Maint Buildings,3000,ISOLATION OF GAS SUPPLY,14/01/2011,314300,609.83,Revenue,Wales & West Utilities
Gloucester City Council,23UE,Blackfriars Development,RB511,General Repair/Maint Buildings,3000,ISOLATION OF GAS SUPPLY,14/01/2011,314301,609.83,Revenue,Wales & West Utilities
Gloucester City Council,23UE,Financial Services,RT200,Consultants Fees,5349,BANK TENDER,14/01/2011,314267,1416.7,Revenue,Brc Consulting Services Ltd
Gloucester City Council,23UE,Improvement Grants,CY013,Disabled Facility Grants,74,GRANT REF MDF4661,17/01/2011,314397,3735,Capital,T.P.G. Disable Aids
Gloucester City Council,23UE,Improvement Grants,CY013,Disabled Facility Grants,74,GRANT REF MDF4695,17/01/2011,314398,3165.05,Capital,Care & Repair
Gloucester City Council,23UE,Decent Homes Grants,CY018,Contract Payments,20,GRANT REF DHG4377,17/01/2011,314490,7493.95,Capital,Fjs Joinery
Gloucester City Council,23UE,Tea & Wake Room Cem&Crem,HY043,Contract Payments,20,ELECTRICAL SERVICES,17/01/2011,314319,4271.1,Capital,Event Power Services Limited
Gloucester City Council,23UE,Aspire Admin Charges,LC105,Gas Supply,3100,GLOUCESTER LEISURE CENTRE - G TARLING,17/01/2011,314248,5692.98,Revenue,Corona Energy
Gloucester City Council,23UE,Countryside Unit,LP201,Livestock Foodstuff,5841,SUPPLIED APR/MAY & DEC 2010,17/01/2011,314399,1245,Revenue,Philip Berry
Gloucester City Council,23UE,Public Transportation,PJ110,Travel Ticket Sales,9238,TICKET SALES / NICOLA JONES,17/01/2011,314282,656.1,Revenue,Stagecoach Services Ltd*
Gloucester City Council,23UE,Off Street Car Parks,PP110,Water Supply,3400,WATER BILL STATION RD CAR PK - H CLARKE,17/01/2011,314270,789.61,Revenue,Severn Trent Water
Gloucester City Council,23UE,Redacted,Redacted,Redacted,Redacted,Redacted,17/01/2011,313939,1251.26,Redacted,Redacted
Gloucester City Council,23UE,Civic Admin And Hospitality,RC210,Hospitality,5122,PERFORMANCES 31/12/10 / J ETTLE,17/01/2011,314314,500,Revenue,Spanners Entertainers
Gloucester City Council,23UE,Financial Services,RT200,Computer Software Maintenance,5427,SUPPORT 01/09/10-31/08/11,17/01/2011,313926,1622.35,Revenue,Advanced Business Solutions
Gloucester City Council,23UE,Financial Services,RT200,Computer Software Maintenance,5427,SUPPORT 01/02/11-31/01/12,17/01/2011,313927,1732.01,Revenue,Advanced Business Solutions
Gloucester City Council,23UE,Safer Stronger Communities,FP841,Other Minor Supplies Services,5590,Safer Glos Website Hosting up to  2012,18/01/2011,314509,995,Revenue,Icon.Revenue
Gloucester City Council,23UE,Cemeteries,HC300,Routine R And M - Vehicles,4011,#EMPTY,18/01/2011,314480,707.07,Revenue,T H White Ltd
Gloucester City Council,23UE,Postal Services,RS120,Postages,5400,#EMPTY,18/01/2011,314498,2061.5,Revenue,Co-Operative Bank
Gloucester City Council,23UE,Council Tax Collection,RT680,Court Fees,5358,#EMPTY,18/01/2011,314498,2037,Revenue,Co-Operative Bank
Gloucester City Council,23UE,Business Transformation & Tech,RT700,Basic Pay - Temporary Staff,2751,P HOOLE W/E  02/01/11,18/01/2011,314401,1410.5,Revenue,G2 Recruitment Solutions Ltd
Gloucester City Council,23UE,Business Transformation & Tech,RT700,Basic Pay - Operational Staff,1001,J FRANKLIN W/E 09/01/11,18/01/2011,314400,798,Revenue,Sanderson Recruitment Plc
Gloucester City Council,23UE,Business Transformation & Tech,RT700,Basic Pay - Temporary Staff,2751,C WATKINS W/E 07/01/11,18/01/2011,314407,890.63,Revenue,Ffox Software Ltd
Gloucester City Council,23UE,Redacted,Redacted,Redacted,Redacted,Redacted,18/01/2011,314484,641.25,Redacted,Redacted
Gloucester City Council,23UE,Improvement Grants,CY013,Disabled Facility Grants,74,GRANT REF MDF4579,19/01/2011,314552,4235,Capital,T.P.G. Disable Aids
Gloucester City Council,23UE,Crem/Cem Garden,HY044,Contract Payments,20,WONDER ARCH WATER FEATURE,19/01/2011,314590,3840,Capital,Mena Engineering (Uk) Ltd
Gloucester City Council,23UE,Tourism Marketing,LT100,Contract Cleaning,3620,DAILY CLEANING AND MAINTENANCE SERVICE,19/01/2011,314257,629.67,Revenue,Rentokil Initial
Gloucester City Council,23UE,Environmental Areas,PE100,Contracted Services,6970,INSTALLATIONS,19/01/2011,314549,5793.02,Revenue,Enterprise (Aol) Ltd
Gloucester City Council,23UE,Environmental Areas,PE100,Contracted Services,6970,SUNDAY COLLECTION OCT 10,19/01/2011,314550,1250,Revenue,Enterprise (Aol) Ltd
Gloucester City Council,23UE,Organisational Health,RC160,Fees For Services Received,5350,OH SERVICES OCTOBER 10 GILL BOURTON,19/01/2011,313502,1491,Revenue,Industrial Medical & Safety Services Ltd
Gloucester City Council,23UE,Legal Services,RS200,Computer Software Maintenance,5427,AXXIA FEES / LEGAL SERVICES,19/01/2011,314482,3194.63,Revenue,Lexis Nexis Ltd
Gloucester City Council,23UE,Business Transformation & Tech,RT700,Basic Pay - Temporary Staff,2751,P HOOLE W/E 19/12/10,19/01/2011,314574,975,Revenue,G2 Recruitment Solutions Ltd
Gloucester City Council,23UE,Business Transformation & Tech,RT700,Basic Pay - Temporary Staff,2751,C WATKINS W/E 14/01/11,19/01/2011,314575,890.63,Revenue,Ffox Software Ltd
Gloucester City Council,23UE,Museum Stone Roof Repairs,RY153,Contract Payments,20,ASBESTOS REMOVAL AT CITY MUSEUM,19/01/2011,314556,9823,Capital,Glos Asbestos Specialist
Gloucester City Council,23UE,Neighbourhood Partnerships,FP104,Fees For Services Received,5350,THREE BRIDGES PARTNERSHIP,20/01/2011,314662,705.9,Revenue,Inky Little Fingers
Gloucester City Council,23UE,Cemeteries,HC300,Fuel,4012,#EMPTY,20/01/2011,314547,1159,Revenue,Cpl Petroleum
Gloucester City Council,23UE,Cemeteries,HC300,Water Supply,3400,ACCT 3850363587,20/01/2011,314658,704.67,Revenue,Severn Trent Water Ltd
Gloucester City Council,23UE,Council Streetcare Team,HI101,Contracted Services,6970,Streetcare Services January 2011,20/01/2011,314306,492806.54,Revenue,Enterprise (Aol) Ltd
Gloucester City Council,23UE,Projects & Maintenance,PT500,Computer Hardware <?5000,5420,STANDARD BASE MINI TOWER,20/01/2011,314673,1276.28,Revenue,Dell Computers Corporation Ltd
Gloucester City Council,23UE,Projects & Maintenance,PT500,Professional Fees,2980,#EMPTY,20/01/2011,19572,530,Revenue,John Slaney
Gloucester City Council,23UE,Docks Complex - Catering Servs,RB110,Catering Provisions -Food,5110,FOOD SUPPLIES / RICHARD,20/01/2011,314312,609.98,Revenue,3663
Gloucester City Council,23UE,Organisational Health,RC160,Fees For Services Received,5350,OH SERVICES NOVEMBER 2010-G.BOURTON,20/01/2011,313684,1467,Revenue,Industrial Medical & Safety Services Ltd
Gloucester City Council,23UE,Postal Services,RS120,Postages,5400,JETMAIL RENTAL / NICOLA JONES,20/01/2011,313656,587,Revenue,Ing Lease (Uk) Ltd
Gloucester City Council,23UE,Postal Services,RS120,Postages,5400,TELESET TOP UP FEE / NICOLA,20/01/2011,314395,6313.05,Revenue,Francotyp-Postalia Ltd
Gloucester City Council,23UE,Treasury Management,VR110,Brokerage Fees,5951,BROKERS FEES,20/01/2011,314661,2558.91,Revenue,Tradition (Uk) Ltd
Gloucester City Council,23UE,Xmas Festivities,HM231,Advertising And Publicity,5702,CHRISTMAS IN GLOUCESTER - JULIE WELLS,21/01/2011,313003,977,Revenue,In2print Ltd
Gloucester City Council,23UE,Aspire Admin Charges,LC105,Telephones And Fax,5410,CALL CHARGES TO 31/12/10,21/01/2011,314642,920,Revenue,Uniworld Communications Ltd
Gloucester City Council,23UE,Off Street Car Parks,PP110,General Repair/Maint Buildings,3000,#EMPTY,21/01/2011,314719,500,Revenue,Ken Pink Plant Hire Ltd
Gloucester City Council,23UE,Docks Complex - Services,RB100,Telephones And Fax,5410,CALL CHARGES TO 31/12/10,21/01/2011,314648,2856.79,Revenue,Uniworld Communications Ltd
Gloucester City Council,23UE,Docks Complex - Castlemeads Cp,RB210,General Repair/Maint Buildings,3000,#EMPTY,21/01/2011,314719,620,Revenue,Ken Pink Plant Hire Ltd
Gloucester City Council,23UE,Investment Property,RB500,Fees For Services Received,5350,FEES RE LEASE OF LAND AT ST OSWALDS,21/01/2011,314641,1020,Revenue,Davies And Partners
Gloucester City Council,23UE,75/81 Eastgate Street,RB501,Water Supply,3400,WATER - 75/81 EASTGATE ST,21/01/2011,314639,1547.83,Revenue,Severn Trent Water
Gloucester City Council,23UE,Marketing Gloucester Charges,RC433,Fees For Services Received,5350,#EMPTY,21/01/2011,11380,700,Revenue,M S Ellis
Gloucester City Council,23UE,Redacted,Redacted,Redacted,Redacted,Redacted,24/01/2011,314758,600,Redacted,Redacted
Gloucester City Council,23UE,Redacted,Redacted,Redacted,Redacted,Redacted,24/01/2011,314758,600,Revenue,Redacted
Gloucester City Council,23UE,Redacted,Redacted,Redacted,Redacted,Redacted,24/01/2011,314759,500,Revenue,Redacted
Gloucester City Council,23UE,Redacted,Redacted,Redacted,Redacted,Redacted,24/01/2011,314760,500,Revenue,Redacted
Gloucester City Council,23UE,Redacted,Redacted,Redacted,Redacted,Redacted,24/01/2011,314748,500.5,Revenue,Redacted
Gloucester City Council,23UE,Redacted,Redacted,Redacted,Redacted,Redacted,24/01/2011,314281,4818.45,Revenue,Redacted
Gloucester City Council,23UE,Financial Services,RT200,Basic Pay - Temporary Staff,2751,W/E 16/01/11,24/01/2011,314749,500.6,Revenue,Venn Group Ltd
Gloucester City Council,23UE,Improvement Grants,CY013,Disabled Facility Grants,74,70 CHURCH DRIVE,25/01/2011,314845,1208.23,Capital,Snape Construction Ltd
Gloucester City Council,23UE,Improvement Grants,CY013,Disabled Facility Grants,74,28 ST MARGARETS,25/01/2011,314846,4749.23,Capital,Snape Construction Ltd
Gloucester City Council,23UE,Redacted,Redacted,Redacted,Redacted,Redacted,25/01/2011,314844,565,Redacted,Redacted
Gloucester City Council,23UE,Improvement Grants,CY013,Disabled Facility Grants,74,1 CURLEW ROAD,25/01/2011,314813,4549,Capital,Beard & Tandy Ltd
Gloucester City Council,23UE,Improvement Grants,CY013,Disabled Facility Grants,74,26 DICKENS CLOSE,25/01/2011,314815,4112.15,Capital,Davey'S Doors & Windows
Gloucester City Council,23UE,Grants To Voluntary Sector,FG100,Funding Vol&Com Grps-Grants,7100C,COMMUNITY GRANT 2010-11,25/01/2011,314755,9739,Revenue,Afro-Caribbean Association
Gloucester City Council,23UE,Crematorium,HC200,Repair/Maint Of Fixed Plant,3006,PROBES,25/01/2011,314803,562.65,Revenue,Facultatieve Technologies Ltd
Gloucester City Council,23UE,Tea & Wake Room Cem&Crem,HY043,Contract Payments,20,#EMPTY,25/01/2011,314826,30000,Capital,Vitruvius  Management Services Ltd
Gloucester City Council,23UE,Tea & Wake Room Cem&Crem,HY043,Contract Payments,20,CREM WORK,25/01/2011,314843,2960,Capital,Nature First Ltd
Gloucester City Council,23UE,Crem/Cem Garden,HY044,Contract Payments,20,#EMPTY,25/01/2011,314829,26437.23,Capital,Jg Bricklaying Ltd
Gloucester City Council,23UE,Redacted,Redacted,Redacted,Redacted,Redacted,25/01/2011,314761,1200,Revenue,Redacted
Gloucester City Council,23UE,Tic Theatre Ticket Sales,LT107,Sale Of Goods And Services,9230,Commission - Tickets Sales,25/01/2011,314793,-39.1,Revenue,Kings Theatre
Gloucester City Council,23UE,Tic Theatre Ticket Sales,LT107,Sale Of Goods And Services,9230,Commission - Booking: MRS S LANDER,25/01/2011,314710,-9.33,Revenue,Superbreak Mini Holidays
Gloucester City Council,23UE,Oxstalls Biomass,PY131,Contract Payments,20,HERBERT WAREHOUSE / GODFREY,25/01/2011,314335,1218.75,Capital,Hays Construction & Property
Gloucester City Council,23UE,Plock Ct Surface Water,PY271,Contract Payments,20,#EMPTY,25/01/2011,314835,695,Capital,Greenfields Garden Services Ltd
Gloucester City Council,23UE,Docks Complex - Services,RB100,Lift Maintenance,3051,#EMPTY,25/01/2011,314839,556.12,Revenue,Schindler Ltd
Gloucester City Council,23UE,Bus Station,RB400,General Repair/Maint Buildings,3000,#EMPTY,25/01/2011,314841,1798.47,Revenue,Scs Installations Ltd
Gloucester City Council,23UE,Bus Station,RB400,General Repair/Maint Buildings,3000,#EMPTY,25/01/2011,314840,634.78,Revenue,Scs Installations Ltd
Gloucester City Council,23UE,Investment Property,RB500,Lightning Conductor,3026,#EMPTY,25/01/2011,314834,3070,Revenue,Brooke Edgeley Specialist Technical Services
Gloucester City Council,23UE,Investment Property,RB500,General Repair/Maint Buildings,3000,#EMPTY,25/01/2011,314842,833.05,Revenue,Scs Installations Ltd
Gloucester City Council,23UE,Procurement Management,RP100,Photocopying,5320,01/02/11-30/04/11,25/01/2011,314811,13847.95,Revenue,The Danwood Group Limited
Gloucester City Council,23UE,Business Transformation & Tech,RT700,Basic Pay - Temporary Staff,2751,J COOPER W/E 02/01/11,25/01/2011,314764,1437.5,Revenue,G2 Recruitment Solutions Ltd
Gloucester City Council,23UE,Business Transformation & Tech,RT700,Basic Pay - Temporary Staff,2751,P HOOLE W/E 09/01/11,25/01/2011,314763,734.5,Revenue,G2 Recruitment Solutions Ltd
Gloucester City Council,23UE,Redacted,Redacted,Redacted,30,Redacted,25/01/2011,314807,641.25,Redacted,Redacted
Gloucester City Council,23UE,Depot Admin Holding A/C,SD100,Electricity Supply,3110,Dec-10,25/01/2011,314716,30380.02,Revenue,Southern Electric
Gloucester City Council,23UE,Dwelling Acquisitions,BY006,Purchase Cost -Buildings,10,DEPOSIT / JANE TYE,26/01/2011,314848,8438,Capital,Tayntons Llp Solicitors
Gloucester City Council,23UE,Crematorium Abatement,HY038,Contract Payments,20,#EMPTY,26/01/2011,312947,2595,Capital,Facultatieve Technologies Ltd
Gloucester City Council,23UE,Crematorium Abatement,HY038,Contract Payments,20,#EMPTY,26/01/2011,312948,865,Capital,Facultatieve Technologies Ltd
Gloucester City Council,23UE,Crematorium Abatement,HY038,Contract Payments,20,#EMPTY,26/01/2011,312951,25500,Capital,Facultatieve Technologies Ltd
Gloucester City Council,23UE,Crematorium Abatement,HY038,Contract Payments,20,#EMPTY,26/01/2011,312949,76500,Capital,Facultatieve Technologies Ltd
Gloucester City Council,23UE,Redacted,Redacted,Redacted,Redacted,Redacted,26/01/2011,314857,2650.79,Revenue,Redacted
Gloucester City Council,23UE,Aspire Admin Charges,LC105,Maint Agreements - Buildings,3010,SL6 CHP MAINTENANCE 2011,26/01/2011,314980,13183.36,Revenue,Cogenco Ltd
Gloucester City Council,23UE,Tic Coach Tickets,LT105,Sale Of Goods And Services,9230,Credit for invoice AREXT/98915,26/01/2011,314990,-10,Revenue,National Express Ltd
Gloucester City Council,23UE,Tic Coach Tickets,LT105,Materials For Sale,5080,Voucher,26/01/2011,314991,-10,Revenue,National Express Ltd
Gloucester City Council,23UE,Tic Coach Tickets,LT105,Materials For Sale,5080,Commission - Ticket sales,26/01/2011,314989,11969.72,Revenue,National Express Ltd
Gloucester City Council,23UE,Tic Coach Tickets,LT105,Sale Of Goods And Services,9230,Commission - Ticket sales,26/01/2011,314989,-1360.64,Revenue,National Express Ltd
Gloucester City Council,23UE,Tic Coach Tickets,LT105,Materials For Sale,5080,Credit note for AREXT/00100354 -31.12.10,26/01/2011,314992,-38.27,Revenue,National Express Ltd
Gloucester City Council,23UE,Coneyhill Hospital S 106 Works,LY072,Contract Payments,20,#EMPTY,26/01/2011,314959,4770,Capital,Abbey Surfacing
Gloucester City Council,23UE,Coneyhill Hospital S 106 Works,LY072,Contract Payments,20,#EMPTY,26/01/2011,314960,7230,Capital,Abbey Surfacing
Gloucester City Council,23UE,Environmental Areas,PE100,Contracted Services,6970,ADHOC ORDERS AUG/SEP 10,26/01/2011,314977,6097.64,Revenue,Enterprise (Aol) Ltd
Gloucester City Council,23UE,Environmental Areas,PE100,Contracted Services,6970,RECYCLING SUNDAYS DEC 10,26/01/2011,314972,1250,Revenue,Enterprise (Aol) Ltd
Gloucester City Council,23UE,Off Street Car Parks,PP110,General Repair/Maint Buildings,3000,#EMPTY,26/01/2011,314958,1545,Revenue,Abbey Surfacing
Gloucester City Council,23UE,Quay Wall At Countrywide,PY229,Contract Payments,20,COUNTRYWIDE STORE WORK,26/01/2011,314979,12696.55,Capital,Snape Construction Ltd
Gloucester City Council,23UE,Plock Ct Surface Water,PY271,Contract Payments,20,#EMPTY,26/01/2011,314953,4806,Capital,Rj Contracting
Gloucester City Council,23UE,Docks Complex - Services,RB100,Window Cleaning,3610,#EMPTY,26/01/2011,11396,600,Revenue,T Wallace
Gloucester City Council,23UE,Investment Property,RB500,Reimbursements,9100,#EMPTY,26/01/2011,314956,520,Revenue,James Steele Electrical Services
Gloucester City Council,23UE,Concessionary Fares,RG300,Fees For Services Received,5350,CONCESSIONARY FARES 10/11,26/01/2011,314987,26829.96,Revenue,Gloucestershire County Council
Gloucester City Council,23UE,Business Transformation & Tech,RT700,Basic Pay - Temporary Staff,2751,C WATKINS W/E 21/01/11,26/01/2011,314984,890.63,Revenue,Ffox Software Ltd
Gloucester City Council,23UE,Folk Museum Works,RY164,Contract Payments,20,#EMPTY,26/01/2011,314955,1486.5,Capital,James Steele Electrical Services
Gloucester City Council,23UE,Redacted,Redacted,Redacted,Redacted,Redacted,26/01/2011,315082,-313.52,Redacted,Redacted
Gloucester City Council,23UE,Redacted,Redacted,Redacted,Redacted,Redacted,26/01/2011,315082,-500,Revenue,Redacted
Gloucester City Council,23UE,Redacted,Redacted,Redacted,Redacted,Redacted,26/01/2011,312109,500,Revenue,Redacted
Gloucester City Council,23UE,Redacted,Redacted,Redacted,Redacted,Redacted,26/01/2011,315083,-484.6,Redacted,Redacted
Gloucester City Council,23UE,Redacted,Redacted,Redacted,Redacted,Redacted,26/01/2011,315083,-400,Revenue,Redacted
Gloucester City Council,23UE,Redacted,Redacted,Redacted,Redacted,Redacted,26/01/2011,315101,-446.76,Redacted,Redacted
Gloucester City Council,23UE,Redacted,Redacted,Redacted,Redacted,Redacted,26/01/2011,315101,-400,Revenue,Redacted
Gloucester City Council,23UE,Redacted,Redacted,Redacted,Redacted,Redacted,26/01/2011,315102,-483.28,Redacted,Redacted
Gloucester City Council,23UE,Redacted,Redacted,Redacted,Redacted,Redacted,26/01/2011,315102,-400,Revenue,Redacted
Gloucester City Council,23UE,Parks Contract Management,LP100,Contracted Services,6970,#EMPTY,26/01/2011,315103,-50,Revenue,Land Registry
Gloucester City Council,23UE,Redacted,Redacted,Redacted,Redacted,Redacted,26/01/2011,315123,-598.36,Redacted,Redacted
Gloucester City Council,23UE,Redacted,Redacted,Redacted,Redacted,Redacted,26/01/2011,310999,598.36,Redacted,Redacted
Gloucester City Council,23UE,Redacted,Redacted,Redacted,Redacted,Redacted,26/01/2011,315123,-500,Revenue,Redacted
Gloucester City Council,23UE,Redacted,Redacted,Redacted,Redacted,Redacted,26/01/2011,310999,500,Revenue,Redacted
Gloucester City Council,23UE,Health And Safety,HD300,Vocational Training,2970,FOOD CONFERENCE 2/11/10 - R WILMOT,26/01/2011,315125,-35,Revenue,Cieh London Region
Gloucester City Council,23UE,Redacted,Redacted,Redacted,Redacted,Redacted,27/01/2011,315113,500,Revenue,Redacted
Gloucester City Council,23UE,75/81 Eastgate Street,RB501,General Repair/Maint Buildings,3000,#EMPTY,27/01/2011,315058,975,Revenue,James Steele Electrical Services
Gloucester City Council,23UE,Tea & Wake Room Cem&Crem,HY043,Contract Payments,20,CREM APP NO 1,28/01/2011,315145,28119.15,Capital,Central Group Roofing (South Wales) Ltd
Gloucester City Council,23UE,Corporate Reporting /Financing,RC504,Other Minor Income,9900,VAT FEES SPORTING TUITION CLAIM,28/01/2011,315150,32007,Revenue,Pricewaterhousecoopers Llp
Gloucester City Council,23UE,Redacted,Redacted,Redacted,Redacted,Redacted,28/01/2011,315194,-550,Revenue,Redacted
Gloucester City Council,23UE,Redacted,Redacted,Redacted,Redacted,Redacted,28/01/2011,305505,550,Revenue,Redacted
Gloucester City Council,23UE,Countryside Unit,LP201,Vehicle Licences,4015,Vehicle Licence for City Farm - WX02 UEC,28/01/2011,315195,-220,Revenue,Post Office Ltd
Gloucester City Council,23UE,Economic Development,FP300,Business Grant,7116,2ND STAGE GRANT AWARD - A. GWINRevenueT,31/01/2011,314519,500,Revenue,Countryman Sports
Gloucester City Council,23UE,Cctv Revenue Budget,FP501,Security Equipment Serv/Repair,3038,Electricity bill for G City CCTV,31/01/2011,315217,1035.29,Revenue,Npower Ltd
Gloucester City Council,23UE,Safer Stronger Communities,FP841,Other Minor Supplies Services,5590,Young G'shire Greyfriar's House Project,31/01/2011,315216,3700,Revenue,Young Gloucestershire
Gloucester City Council,23UE,Basic Command Unit,FP842,Other Minor Supplies Services,5590,half-yr retraction surgeries for GDVSAP,31/01/2011,315146,500,Revenue,Glos Domestic Violence Support Advocacy
Gloucester City Council,23UE,Sebert St S106,LY119,Contract Payments,20,CIS SPLIT NOT DONE ON INV 381,31/01/2011,315234,15296.04,Capital,LandsCapitale To Play Ltd
Gloucester City Council,23UE,Sebert St S106,LY119,Contract Payments,20,CIS SPLIT NOT DONE ON INV 381,31/01/2011,315233,-15296.04,Capital,LandsCapitale To Play Ltd
Gloucester City Council,23UE,Civic Admin And Hospitality,RC210,Events,5952,#EMPTY,31/01/2011,11402,800,Revenue,Mr T Bowden
Gloucester City Council,23UE,Housing Benefits Admin,RT620,Computer Software Maintenance,5427,#EMPTY,31/01/2011,315149,2318.73,Revenue,Civica Uk Ltd
